[Event "Torneo Nuevo Centro. Jornada 10"]
[Site "Chess.com"]
[Date "2020.08.21"]
[Round "7"]
[White "Cebolla Ruiz, David"]
[Black "Roca Cruz, Rafael"]
[Result "0-1"]
[WhiteElo "1545"]
[BlackElo "1825"]
[TimeControl "180+2"]
[EndTime "11:50:09 PDT"]
[Termination "Victoria de RafaRocaCruz por jaque mate"]

1. e4 {[%clk 0:02:56.7]} 1... c5 {[%clk 0:03:00.8]} 2. Nf3 {[%clk 0:02:56.3]}
2... e6 {[%clk 0:03:01.5]} 3. d4 {[%clk 0:02:57.5]} 3... cxd4 {[%clk 0:03:02.2]}
4. Nxd4 {[%clk 0:02:59.2]} 4... Nf6 {[%clk 0:03:03.7]} 5. f3 {[%clk 0:02:57.3]}
5... d5 {[%clk 0:03:02.3]} 6. Bd3 {[%clk 0:02:47.9]} 6... dxe4 {[%clk
0:02:55.1]} 7. Bxe4 {[%clk 0:02:47.5]} 7... Nxe4 {[%clk 0:02:51.7]} 8. fxe4
{[%clk 0:02:48.1]} 8... Qh4+ {[%clk 0:02:52]} 9. g3 {[%clk 0:02:43.2]} 9...
Qxe4+ {[%clk 0:02:50.5]} 10. Kf2 {[%clk 0:02:36.2]} 10... Bc5 {[%clk 0:02:49.1]}
11. Be3 {[%clk 0:02:32.6]} 11... Nc6 {[%clk 0:02:49.3]} 12. Nc3 {[%clk
0:02:29.8]} 12... Qe5 {[%clk 0:02:12.2]} 13. Nce2 {[%clk 0:01:37.6]} 13... Qf6+
{[%clk 0:01:34.2]} 14. Kg2 {[%clk 0:01:34.6]} 14... e5 {[%clk 0:01:25.1]} 15.
Rf1 {[%clk 0:01:05.8]} 15... Qg6 {[%clk 0:00:27.7]} 16. Nxc6 {[%clk 0:00:23.8]}
16... Qxc6+ {[%clk 0:00:26.6]} 17. Kf2 {[%clk 0:00:16.4]} 17... Bg4 {[%clk
0:00:13.6]} 18. Bxc5 {[%clk 0:00:14.4]} 18... Qxc5+ {[%clk 0:00:13.6]} 19. Ke1
{[%clk 0:00:14.8]} 19... Rd8 {[%clk 0:00:13.8]} 20. Qc1 {[%clk 0:00:15]} 20...
Qb4+ {[%clk 0:00:06.6]} 21. c3 {[%clk 0:00:12.9]} 21... Qe4 {[%clk 0:00:06.8]}
22. Rf2 {[%clk 0:00:08.8]} 22... O-O {[%clk 0:00:05.8]} 23. Kf1 {[%clk
0:00:07.2]} 23... Bxe2+ {[%clk 0:00:03.6]} 24. Rxe2 {[%clk 0:00:07.8]} 24...
Qh1+ {[%clk 0:00:01.5]} 25. Kf2 {[%clk 0:00:08.7]} 25... Qxh2+ {[%clk
0:00:01.9]} 26. Ke3 {[%clk 0:00:05.5]} 26... Qh5 {[%clk 0:00:03.4]} 27. Rd2
{[%clk 0:00:04.8]} 27... Qg5+ {[%clk 0:00:04]} 28. Ke2 {[%clk 0:00:05.3]} 28...
Rxd2+ {[%clk 0:00:05.2]} 29. Qxd2 {[%clk 0:00:06.2]} 29... Qxd2+ {[%clk
0:00:06.9]} 30. Kxd2 {[%clk 0:00:07.5]} 30... Rd8+ {[%clk 0:00:08.4]} 31. Ke2
{[%clk 0:00:08.5]} 31... f5 {[%clk 0:00:09.2]} 32. Rf1 {[%clk 0:00:08.5]} 32...
g6 {[%clk 0:00:09.7]} 33. Ke3 {[%clk 0:00:07.5]} 33... Kg7 {[%clk 0:00:08.9]}
34. Rf2 {[%clk 0:00:06.8]} 34... Kf6 {[%clk 0:00:08.9]} 35. Rh2 {[%clk
0:00:07.1]} 35... h5 {[%clk 0:00:08.8]} 36. Rf2 {[%clk 0:00:06.4]} 36... e4
{[%clk 0:00:09.6]} 37. Rh2 {[%clk 0:00:06.4]} 37... Rd3+ {[%clk 0:00:10.5]} 38.
Ke2 {[%clk 0:00:03.5]} 38... Rxg3 {[%clk 0:00:10.9]} 39. Rf2 {[%clk 0:00:02.2]}
39... Ke5 {[%clk 0:00:11.7]} 40. Rf1 {[%clk 0:00:03.3]} 40... f4 {[%clk
0:00:11.1]} 41. Rd1 {[%clk 0:00:04.4]} 41... Rd3 {[%clk 0:00:11.4]} 42. Re1
{[%clk 0:00:04.8]} 42... Re3+ {[%clk 0:00:10.6]} 43. Kf2 {[%clk 0:00:06.1]}
43... Rxe1 {[%clk 0:00:11.8]} 44. Kxe1 {[%clk 0:00:08]} 44... f3 {[%clk
0:00:12.8]} 45. Kf2 {[%clk 0:00:09]} 45... Kf4 {[%clk 0:00:14.1]} 46. c4 {[%clk
0:00:09.7]} 46... e3+ {[%clk 0:00:12.5]} 47. Kf1 {[%clk 0:00:10.3]} 47... Ke4
{[%clk 0:00:12.7]} 48. b3 {[%clk 0:00:09.4]} 48... Kd4 {[%clk 0:00:13.8]} 49. a3
{[%clk 0:00:09.3]} 49... a5 {[%clk 0:00:14.7]} 50. b4 {[%clk 0:00:09.9]} 50...
axb4 {[%clk 0:00:15.8]} 51. axb4 {[%clk 0:00:10.9]} 51... Kxc4 {[%clk
0:00:15.8]} 52. b5 {[%clk 0:00:12.3]} 52... Kxb5 {[%clk 0:00:15.1]} 53. Ke1
{[%clk 0:00:13.1]} 53... Kc4 {[%clk 0:00:16.4]} 54. Kf1 {[%clk 0:00:14.6]} 54...
Kd3 {[%clk 0:00:17.2]} 55. Ke1 {[%clk 0:00:16]} 55... b5 {[%clk 0:00:17.6]} 56.
Kf1 {[%clk 0:00:16.7]} 56... g5 {[%clk 0:00:17.8]} 57. Ke1 {[%clk 0:00:17.7]}
57... g4 {[%clk 0:00:18.7]} 58. Kf1 {[%clk 0:00:19.1]} 58... g3 {[%clk
0:00:20.1]} 59. Kg1 {[%clk 0:00:19]} 59... b4 {[%clk 0:00:22]} 60. Kf1 {[%clk
0:00:20.2]} 60... b3 {[%clk 0:00:23.9]} 61. Ke1 {[%clk 0:00:20.9]} 61... b2
{[%clk 0:00:24.9]} 62. Kd1 {[%clk 0:00:22.3]} 62... b1=Q# {[%clk 0:00:26.8]} 0

[Event "Torneo Nuevo Centro. Jornada 10"]
[Site "Chess.com"]
[Date "2020.08.21"]
[Round "7"]
[White "Gómez Alonso, Óscar"]
[Black "Pardo Ruiz, Carlos"]
[Result "0-1"]
[WhiteElo "1823"]
[BlackElo "1690"]
[TimeControl "180+2"]
[EndTime "11:50:10 PDT"]
[Termination "Victoria de Carlitoscarlsen por abandono"]

1. d4 {[%clk 0:03:01.8]} 1... c5 {[%clk 0:02:58.1]} 2. c3 {[%clk 0:03:00.8]}
2... d5 {[%clk 0:02:58.1]} 3. Nf3 {[%clk 0:03:00.9]} 3... Bf5 {[%clk 0:02:57.5]}
4. e3 {[%clk 0:03:01.4]} 4... Nf6 {[%clk 0:02:58]} 5. dxc5 {[%clk 0:02:58.3]}
5... e6 {[%clk 0:02:57.5]} 6. Bd3 {[%clk 0:02:58.9]} 6... Bxd3 {[%clk
0:02:57.5]} 7. Qxd3 {[%clk 0:02:59.9]} 7... Nc6 {[%clk 0:02:51.8]} 8. b4 {[%clk
0:03:00.4]} 8... a5 {[%clk 0:02:51.5]} 9. b5 {[%clk 0:02:57.6]} 9... Na7 {[%clk
0:02:48.5]} 10. Ba3 {[%clk 0:02:47.3]} 10... Rc8 {[%clk 0:02:38.1]} 11. b6
{[%clk 0:02:36.5]} 11... Nc6 {[%clk 0:02:35.7]} 12. Qb5 {[%clk 0:02:37.4]} 12...
Be7 {[%clk 0:02:33.1]} 13. Ne5 {[%clk 0:02:35.6]} 13... O-O {[%clk 0:02:25.4]}
14. Nxc6 {[%clk 0:02:36.3]} 14... Rxc6 {[%clk 0:02:23.2]} 15. Qxa5 {[%clk
0:02:36.5]} 15... Qc8 {[%clk 0:02:23.5]} 16. Nd2 {[%clk 0:02:31.3]} 16... Bxc5
{[%clk 0:02:22.1]} 17. Bxc5 {[%clk 0:02:27.8]} 17... Rxc5 {[%clk 0:02:24]} 18.
Qa7 {[%clk 0:02:18.1]} 18... Rxc3 {[%clk 0:02:22.6]} 19. O-O {[%clk 0:02:11.3]}
19... Rc2 {[%clk 0:02:09.2]} 20. Nb3 {[%clk 0:02:12.1]} 20... Qa8 {[%clk
0:01:58]} 21. Qxa8 {[%clk 0:02:03.7]} 21... Rxa8 {[%clk 0:01:59.9]} 22. a4
{[%clk 0:02:03.9]} 22... Rb2 {[%clk 0:01:55.4]} 23. Nd4 {[%clk 0:02:02.6]} 23...
Rxb6 {[%clk 0:01:53.2]} 24. a5 {[%clk 0:01:54.3]} 24... Rba6 {[%clk 0:01:49.2]}
25. Rfc1 {[%clk 0:01:29]} 25... g6 {[%clk 0:01:46.1]} 26. Nb3 {[%clk 0:01:21.4]}
26... Ne4 {[%clk 0:01:37.7]} 27. g3 {[%clk 0:01:20.2]} 27... Kg7 {[%clk
0:01:26.1]} 28. f3 {[%clk 0:01:15.3]} 28... Nd6 {[%clk 0:01:25.4]} 29. Rc5
{[%clk 0:01:11.3]} 29... b6 {[%clk 0:01:10.8]} 30. Rc6 {[%clk 0:01:12.3]} 30...
bxa5 {[%clk 0:01:11.5]} 31. Rxa6 {[%clk 0:01:09.4]} 31... Rxa6 {[%clk 0:01:12]}
32. Rxa5 {[%clk 0:01:00.9]} 32... Rxa5 {[%clk 0:01:12.8]} 33. Nxa5 {[%clk
0:01:01.9]} 33... Kf8 {[%clk 0:01:13.5]} 34. Kf2 {[%clk 0:01:02.2]} 34... Ke8
{[%clk 0:01:13.7]} 35. Nc6 {[%clk 0:01:03.1]} 35... f6 {[%clk 0:01:11.2]} 36.
Ke2 {[%clk 0:01:02.9]} 36... Kd7 {[%clk 0:01:10.8]} 37. Nb4 {[%clk 0:01:02.5]}
37... Kc7 {[%clk 0:01:04.7]} 38. Kd3 {[%clk 0:01:03.5]} 38... Kb6 {[%clk
0:01:01.4]} 39. Nc2 {[%clk 0:00:59.5]} 39... e5 {[%clk 0:00:59.6]} 40. f4 {[%clk
0:00:59.1]} 40... Kc5 {[%clk 0:00:54.8]} 41. fxe5 {[%clk 0:00:48.5]} 41... fxe5
{[%clk 0:00:56.7]} 42. Ne1 {[%clk 0:00:47.3]} 42... e4+ {[%clk 0:00:55.7]} 43.
Kd2 {[%clk 0:00:48.1]} 43... Nc4+ {[%clk 0:00:55.9]} 44. Ke2 {[%clk 0:00:49.2]}
44... d4 {[%clk 0:00:53.8]} 45. exd4+ {[%clk 0:00:48.5]} 45... Kxd4 {[%clk
0:00:55.7]} 46. Nc2+ {[%clk 0:00:49.8]} 46... Ke5 {[%clk 0:00:56.4]} 47. Nb4
{[%clk 0:00:49.1]} 47... Nd6 {[%clk 0:00:52.1]} 48. h3 {[%clk 0:00:49.8]} 48...
Nf5 {[%clk 0:00:52.5]} 49. g4 {[%clk 0:00:49.7]} 49... Nd4+ {[%clk 0:00:52.6]}
50. Ke3 {[%clk 0:00:49.9]} 50... h5 {[%clk 0:00:46.9]} 51. Na6 {[%clk
0:00:41.8]} 51... Nc2+ {[%clk 0:00:40.6]} 52. Kd2 {[%clk 0:00:42.7]} 52... Nd4
{[%clk 0:00:40.2]} 53. gxh5 {[%clk 0:00:42.8]} 53... gxh5 {[%clk 0:00:40.7]} 54.
Ke3 {[%clk 0:00:43.1]} 54... Nf5+ {[%clk 0:00:41.1]} 55. Ke2 {[%clk 0:00:42.4]}
55... Kf4 {[%clk 0:00:42.1]} 56. Nc5 {[%clk 0:00:42.7]} 56... Ng3+ {[%clk
0:00:42.3]} 57. Kf2 {[%clk 0:00:43.3]} 57... e3+ {[%clk 0:00:42.9]} 58. Kg2
{[%clk 0:00:44.4]} 58... e2 {[%clk 0:00:36.9]} 59. Nd3+ {[%clk 0:00:44.1]} 59...
Ke3 {[%clk 0:00:25.3]} 60. Ne1 {[%clk 0:00:44.9]} 60... Nf5 {[%clk 0:00:22.8]}
61. Kh2 {[%clk 0:00:37.4]} 61... h4 {[%clk 0:00:23.5]} 62. Kg2 {[%clk
0:00:38.5]} 62... Nd4 {[%clk 0:00:24.1]} 63. Kh2 {[%clk 0:00:37.7]} 63... Nf3+
{[%clk 0:00:23.7]} 64. Kg2 {[%clk 0:00:32.8]} 64... Nxe1+ {[%clk 0:00:24.3]} 65.
Kg1 {[%clk 0:00:34.1]} 65... Nd3 {[%clk 0:00:24.9]} 66. Kg2 {[%clk 0:00:35.1]}
66... e1=Q {[%clk 0:00:25.9]} 0

[Event "Torneo Nuevo Centro. Jornada 10"]
[Site "Chess.com"]
[Date "2020.08.21"]
[Round "7"]
[White "Serrano Requena, Guillem"]
[Black "Camison Zornoza, Cesar"]
[Result "1-0"]
[WhiteElo "1318"]
[BlackElo "1772"]
[TimeControl "180+2"]
[EndTime "11:50:20 PDT"]
[Termination "Victoria de Guily351 - partida abandonada"]

1. d4 {[%clk 0:03:01.9]} 1... Nf6 {[%clk 0:02:59.6]} 2. Bg5 {[%clk 0:03:02.2]}
2... c5 {[%clk 0:02:59.8]} 3. Bxf6 {[%clk 0:03:02.1]} 3... gxf6 {[%clk 0:03:00]}
4. c3 {[%clk 0:03:00.9]} 4... cxd4 {[%clk 0:03:00.5]} 5. cxd4 {[%clk 0:03:01.9]}
5... Bg7 {[%clk 0:03:01.5]} 6. g3 {[%clk 0:03:00.3]} 6... O-O {[%clk 0:03:01.3]}
7. Bg2 {[%clk 0:03:01]} 7... d6 {[%clk 0:03:00.1]} 8. Nc3 {[%clk 0:03:01.4]}
8... Nc6 {[%clk 0:02:58.2]} 9. e3 {[%clk 0:03:01.6]} 9... Qb6 {[%clk 0:02:55.4]}
10. Nd5 {[%clk 0:02:44.6]} 10... Qd8 {[%clk 0:02:46.8]} 11. Ne2 {[%clk 0:02:41]}
11... e6 {[%clk 0:02:46.4]} 12. Ndc3 {[%clk 0:02:39.6]} 12... e5 {[%clk
0:02:44]} 13. O-O {[%clk 0:02:38.7]} 13... Bg4 {[%clk 0:02:39.2]} 14. Qd2 {[%clk
0:02:30]} 14... Re8 {[%clk 0:02:25.8]} 15. a3 {[%clk 0:02:22.3]} 15... Bxe2
{[%clk 0:02:16.9]} 16. Nxe2 {[%clk 0:02:16.5]} 16... f5 {[%clk 0:02:10.5]} 17.
Rac1 {[%clk 0:02:09.4]} 17... Qb6 {[%clk 0:02:07.8]} 18. Rfd1 {[%clk 0:01:59.6]}
18... Rad8 {[%clk 0:02:02.4]} 19. b4 {[%clk 0:01:49.7]} 19... Ne7 {[%clk
0:01:32.5]} 20. a4 {[%clk 0:01:32.8]} 20... Ng6 {[%clk 0:01:08]} 21. a5 {[%clk
0:01:28.6]} 21... Qb5 {[%clk 0:01:08]} 22. Qb2 {[%clk 0:01:17.7]} 22... e4
{[%clk 0:01:05.9]} 23. Nc3 {[%clk 0:01:09.8]} 23... Qd7 {[%clk 0:01:06.2]} 24.
Bh3 {[%clk 0:01:05.8]} 24... Ne7 {[%clk 0:00:54.8]} 25. Nxe4 {[%clk 0:01:01.1]}
25... Qe6 {[%clk 0:00:47.5]} 26. Nc3 {[%clk 0:00:36.3]} 26... Qh6 {[%clk
0:00:47.9]} 27. Bg2 {[%clk 0:00:34.1]} 27... b6 {[%clk 0:00:41.2]} 28. axb6
{[%clk 0:00:32]} 28... axb6 {[%clk 0:00:42.5]} 29. Qb3 {[%clk 0:00:32.4]} 29...
Qg6 {[%clk 0:00:37.9]} 30. Nd5 {[%clk 0:00:26.9]} 30... Nxd5 {[%clk 0:00:37.2]}
31. Bxd5 {[%clk 0:00:26.9]} 31... Rc8 {[%clk 0:00:35.1]} 32. Ra1 {[%clk
0:00:18.7]} 32... f4 {[%clk 0:00:34]} 33. Ra7 {[%clk 0:00:17.1]} 33... Rf8
{[%clk 0:00:32.4]} 34. exf4 {[%clk 0:00:13.5]} 34... Qf5 {[%clk 0:00:29.6]} 35.
Re1 {[%clk 0:00:09.2]} 35... Bxd4 {[%clk 0:00:22.8]} 36. Ree7 {[%clk 0:00:08.4]}
36... Rc1+ {[%clk 0:00:16.7]} 37. Kg2 {[%clk 0:00:08.2]} 37... Rc2 {[%clk
0:00:17.3]} 38. Rxf7 {[%clk 0:00:06.8]} 38... Kh8 {[%clk 0:00:12.1]} 39. Rxf5
{[%clk 0:00:07.1]} 39... Rxf2+ {[%clk 0:00:11.8]} 40. Kg1 {[%clk 0:00:07.1]}
40... Rb2+ {[%clk 0:00:10.7]} 41. Kf1 {[%clk 0:00:08]} 41... Rxf5 {[%clk
0:00:07.6]} 42. Qxb2 {[%clk 0:00:06.9]} 42... Bxb2 {[%clk 0:00:08]} 43. Be6
{[%clk 0:00:05.3]} 43... Rf8 {[%clk 0:00:06.3]} 44. Bd5 {[%clk 0:00:04.1]} 44...
Bg7 {[%clk 0:00:08.2]} 45. Be4 {[%clk 0:00:04.6]} 45... Bd4 {[%clk 0:00:09.6]}
46. Rxh7+ {[%clk 0:00:04.7]} 46... Kg8 {[%clk 0:00:10.9]} 47. Rh4 {[%clk
0:00:04.4]} 47... Re8 {[%clk 0:00:10.7]} 48. Rg4+ {[%clk 0:00:04.8]} 48... Kf7
{[%clk 0:00:12.1]} 49. Bg6+ {[%clk 0:00:05.6]} 49... Ke7 {[%clk 0:00:13.9]} 50.
Bxe8 {[%clk 0:00:06.6]} 50... Kxe8 {[%clk 0:00:15.8]} 51. f5 {[%clk 0:00:07.7]}
51... Ke7 {[%clk 0:00:17.2]} 52. Rxd4 {[%clk 0:00:08.3]} 52... Kf6 {[%clk
0:00:19.1]} 53. Rxd6+ {[%clk 0:00:07.9]} 53... Kxf5 {[%clk 0:00:21]} 54. Rxb6
{[%clk 0:00:08.7]} 54... Ke5 {[%clk 0:00:22.9]} 55. Rc6 {[%clk 0:00:09.5]} 55...
Kf5 {[%clk 0:00:24]} 56. b5 {[%clk 0:00:10.4]} 56... Ke5 {[%clk 0:00:25.9]} 57.
b6 {[%clk 0:00:12.1]} 57... Kd5 {[%clk 0:00:27.3]} 58. Rc1 {[%clk 0:00:12.9]}
58... Kd6 {[%clk 0:00:28.3]} 59. b7 {[%clk 0:00:13.9]} 59... Kd5 {[%clk
0:00:30.2]} 60. b8=Q {[%clk 0:00:14.3]} 60... Ke4 {[%clk 0:00:32.1]} 61. Qe8+
{[%clk 0:00:14.5]} 61... Kd4 {[%clk 0:00:34]} 62. Rd1+ {[%clk 0:00:14.7]} 1

[Event "Torneo Nuevo Centro. Jornada 10"]
[Site "Chess.com"]
[Date "2020.08.21"]
[Round "7"]
[White "Fenollar Jorda, Manolo"]
[Black "Macias Pino, Diego"]
[Result "1-0"]
[WhiteElo "2488"]
[BlackElo "2261"]
[TimeControl "180+2"]
[EndTime "11:50:30 PDT"]
[Termination "Victoria de Cucudrulu por abandono"]

1. d4 {[%clk 0:03:01.9]} 1... d5 {[%clk 0:02:58.7]} 2. Nf3 {[%clk 0:03:02.9]}
2... Nf6 {[%clk 0:02:59.1]} 3. e3 {[%clk 0:03:03.8]} 3... a6 {[%clk 0:02:59.8]}
4. Bd3 {[%clk 0:03:04.3]} 4... e6 {[%clk 0:02:59.5]} 5. O-O {[%clk 0:03:03.6]}
5... Bd6 {[%clk 0:02:58.3]} 6. Nbd2 {[%clk 0:03:02.7]} 6... c5 {[%clk
0:02:58.9]} 7. c3 {[%clk 0:03:02.9]} 7... Nc6 {[%clk 0:02:59.2]} 8. Qe2 {[%clk
0:02:59.6]} 8... Qc7 {[%clk 0:02:58.7]} 9. dxc5 {[%clk 0:02:57.4]} 9... Bxc5
{[%clk 0:02:59.4]} 10. e4 {[%clk 0:02:58.8]} 10... dxe4 {[%clk 0:02:58.6]} 11.
Nxe4 {[%clk 0:03:00.7]} 11... Be7 {[%clk 0:02:57.4]} 12. Bg5 {[%clk 0:02:46.5]}
12... Nd5 {[%clk 0:02:51.2]} 13. Bxe7 {[%clk 0:02:41.6]} 13... Ncxe7 {[%clk
0:02:42.8]} 14. g3 {[%clk 0:02:41.4]} 14... Ng6 {[%clk 0:02:26.3]} 15. Rfd1
{[%clk 0:02:33.2]} 15... O-O {[%clk 0:02:25.5]} 16. Rac1 {[%clk 0:02:21.6]}
16... b6 {[%clk 0:02:24.7]} 17. c4 {[%clk 0:02:19.9]} 17... Nb4 {[%clk 0:01:59]}
18. c5 {[%clk 0:02:13.9]} 18... Nxd3 {[%clk 0:01:55.5]} 19. Rxd3 {[%clk
0:02:05.8]} 19... bxc5 {[%clk 0:01:46.8]} 20. Rxc5 {[%clk 0:02:03.9]} 20... Qe7
{[%clk 0:01:47]} 21. Rdc3 {[%clk 0:02:02.2]} 21... Bb7 {[%clk 0:01:11.9]} 22.
Rc7 {[%clk 0:01:54.2]} 22... Qb4 {[%clk 0:01:08.8]} 23. R3c4 {[%clk 0:01:50.3]}
23... Qb6 {[%clk 0:01:00.3]} 24. b3 {[%clk 0:01:46.6]} 24... Bd5 {[%clk
0:00:57.7]} 25. Rc1 {[%clk 0:01:45]} 25... Rfd8 {[%clk 0:00:52]} 26. h4 {[%clk
0:01:41.3]} 26... h6 {[%clk 0:00:46.3]} 27. R7c3 {[%clk 0:01:28]} 27... Ne7
{[%clk 0:00:39.2]} 28. Ne5 {[%clk 0:01:16.3]} 28... Nf5 {[%clk 0:00:34]} 29. Kh2
{[%clk 0:01:05.1]} 29... Qb7 {[%clk 0:00:30.5]} 30. Nc5 {[%clk 0:00:58.4]} 30...
Qb5 {[%clk 0:00:31.8]} 31. Qg4 {[%clk 0:00:26.4]} 31... Qe8 {[%clk 0:00:23]} 32.
Ncd3 {[%clk 0:00:22.7]} 32... Rdc8 {[%clk 0:00:21.6]} 33. Nf4 {[%clk 0:00:21.7]}
33... Rxc3 {[%clk 0:00:19.3]} 34. Rxc3 {[%clk 0:00:23.6]} 34... Bb7 {[%clk
0:00:16.4]} 35. Qd1 {[%clk 0:00:21.2]} 35... Rd8 {[%clk 0:00:15]} 36. Qc1 {[%clk
0:00:22.3]} 36... Rc8 {[%clk 0:00:16]} 37. Rxc8 {[%clk 0:00:22.6]} 37... Bxc8
{[%clk 0:00:17.3]} 38. Qc5 {[%clk 0:00:21.9]} 38... Bb7 {[%clk 0:00:17.5]} 39.
h5 {[%clk 0:00:21.1]} 39... Ba8 {[%clk 0:00:17.9]} 40. g4 {[%clk 0:00:21.7]}
40... Ne7 {[%clk 0:00:16.3]} 41. Kg3 {[%clk 0:00:21.7]} 41... Nd5 {[%clk
0:00:17.6]} 42. Nxd5 {[%clk 0:00:22.2]} 42... exd5 {[%clk 0:00:18.6]} 43. Qd6
{[%clk 0:00:23]} 43... f6 {[%clk 0:00:18.9]} 44. Nf3 {[%clk 0:00:22.6]} 44... d4
{[%clk 0:00:20.2]} 45. Qxd4 {[%clk 0:00:22.5]} 45... Kh8 {[%clk 0:00:17.6]} 46.
Nh4 {[%clk 0:00:22.7]} 46... Kh7 {[%clk 0:00:15.5]} 47. Qd3+ {[%clk 0:00:22]}
47... Be4 {[%clk 0:00:16.1]} 48. Qe3 {[%clk 0:00:23.6]} 48... Qe5+ {[%clk
0:00:16.1]} 49. Qf4 {[%clk 0:00:24.9]} 49... Qc3+ {[%clk 0:00:16.8]} 50. f3
{[%clk 0:00:25.7]} 50... Qe1+ {[%clk 0:00:14.9]} 51. Kh3 {[%clk 0:00:26.6]}
51... Qh1+ {[%clk 0:00:15.2]} 52. Qh2 {[%clk 0:00:24.8]} 52... Qe1 {[%clk
0:00:17.1]} 53. fxe4 {[%clk 0:00:23.5]} 53... Qxe4 {[%clk 0:00:16.1]} 54. Qf2
{[%clk 0:00:21.9]} 54... Qh1+ {[%clk 0:00:14.1]} 55. Kg3 {[%clk 0:00:22.3]}
55... Kh8 {[%clk 0:00:14.9]} 56. Ng6+ {[%clk 0:00:22.8]} 56... Kh7 {[%clk
0:00:15.6]} 57. Qc2 {[%clk 0:00:22.4]} 57... Qg1+ {[%clk 0:00:15.6]} 58. Kf3
{[%clk 0:00:23.8]} 58... Qf1+ {[%clk 0:00:15.5]} 59. Ke3 {[%clk 0:00:25.1]}
59... Qe1+ {[%clk 0:00:15.3]} 60. Kd4 {[%clk 0:00:24.8]} 60... Qg1+ {[%clk
0:00:13.7]} 61. Kd5 {[%clk 0:00:24.2]} 61... Qh1+ {[%clk 0:00:14.2]} 62. Kc5
{[%clk 0:00:24.5]} 62... Qg1+ {[%clk 0:00:14.4]} 63. Kc6 {[%clk 0:00:25.2]}
63... Qh1+ {[%clk 0:00:13.5]} 64. Kb6 {[%clk 0:00:26.4]} 64... f5 {[%clk
0:00:08.9]} 65. Qxf5 {[%clk 0:00:25]} 65... Qg1+ {[%clk 0:00:10.2]} 66. Kxa6
{[%clk 0:00:24.7]} 66... Qb6+ {[%clk 0:00:02.8]} 1

[Event "Torneo Nuevo Centro. Jornada 10"]
[Site "Chess.com"]
[Date "2020.08.21"]
[Round "7"]
[White "Garcia, Jhoel"]
[Black "Castellano López, Javier"]
[Result "0-1"]
[WhiteElo "2385"]
[BlackElo "1920"]
[TimeControl "180+2"]
[EndTime "11:50:33 PDT"]
[Termination "Victoria de its_xavi_official por abandono"]

1. e4 {[%clk 0:03:01.9]} 1... c6 {[%clk 0:03:00.3]} 2. d4 {[%clk 0:02:59.3]}
2... d5 {[%clk 0:03:01.1]} 3. Nc3 {[%clk 0:02:58.4]} 3... dxe4 {[%clk
0:03:01.1]} 4. Nxe4 {[%clk 0:02:59.8]} 4... Bf5 {[%clk 0:03:02.6]} 5. Ng3 {[%clk
0:03:00.9]} 5... Bg6 {[%clk 0:03:03.5]} 6. Nh3 {[%clk 0:03:01.2]} 6... h6 {[%clk
0:03:02.9]} 7. Nf4 {[%clk 0:03:02]} 7... Bh7 {[%clk 0:03:03.7]} 8. Bc4 {[%clk
0:02:59.8]} 8... Nf6 {[%clk 0:03:02.6]} 9. Qe2 {[%clk 0:02:59.3]} 9... Nd5
{[%clk 0:02:32.7]} 10. Nxd5 {[%clk 0:02:34.4]} 10... cxd5 {[%clk 0:02:32.4]} 11.
Bb5+ {[%clk 0:02:35.9]} 11... Nc6 {[%clk 0:02:30]} 12. O-O {[%clk 0:02:33.2]}
12... e6 {[%clk 0:02:30.5]} 13. f4 {[%clk 0:02:34.5]} 13... Bd6 {[%clk
0:02:28.2]} 14. f5 {[%clk 0:02:35.8]} 14... Bxg3 {[%clk 0:02:23.6]} 15. fxe6
{[%clk 0:02:22.5]} 15... Bxh2+ {[%clk 0:02:23.8]} 16. Kxh2 {[%clk 0:02:21.8]}
16... Qd6+ {[%clk 0:02:24.9]} 17. Bf4 {[%clk 0:01:46.4]} 17... Qxe6 {[%clk
0:02:25.4]} 18. Rae1 {[%clk 0:01:45.5]} 18... Qxe2 {[%clk 0:02:20.6]} 19. Rxe2+
{[%clk 0:01:45.6]} 19... Be4 {[%clk 0:02:16.8]} 20. Rxe4+ {[%clk 0:01:37.5]}
20... dxe4 {[%clk 0:02:16.3]} 21. d5 {[%clk 0:01:39.1]} 21... Rc8 {[%clk
0:02:08.9]} 22. dxc6 {[%clk 0:01:38.5]} 22... bxc6 {[%clk 0:02:10.8]} 23. Ba6
{[%clk 0:01:39.1]} 23... Rd8 {[%clk 0:02:10.8]} 24. Re1 {[%clk 0:01:30.4]} 24...
f5 {[%clk 0:02:07.7]} 25. Bb7 {[%clk 0:01:25.7]} 25... O-O {[%clk 0:02:03]} 26.
Bxc6 {[%clk 0:00:59.5]} 26... g5 {[%clk 0:02:03.8]} 27. Be5 {[%clk 0:00:55.7]}
27... Rd2 {[%clk 0:01:59.1]} 28. Ba4 {[%clk 0:00:55.4]} 28... Rfd8 {[%clk
0:01:56.1]} 29. Bc3 {[%clk 0:00:50]} 29... Rd1 {[%clk 0:01:56.5]} 30. Re2 {[%clk
0:00:50.2]} 30... Kf7 {[%clk 0:01:50.6]} 31. Be1 {[%clk 0:00:46.5]} 31... R1d4
{[%clk 0:01:42.1]} 32. c4 {[%clk 0:00:46.8]} 32... Kg6 {[%clk 0:01:38.2]} 33.
Bb3 {[%clk 0:00:42.8]} 33... Re8 {[%clk 0:01:30.4]} 34. Bc3 {[%clk 0:00:42.3]}
34... Rdd8 {[%clk 0:01:29.4]} 35. Bc2 {[%clk 0:00:40.9]} 35... g4 {[%clk
0:01:23.4]} 36. c5 {[%clk 0:00:39.4]} 36... Rc8 {[%clk 0:01:11.5]} 37. b4 {[%clk
0:00:39.7]} 37... a5 {[%clk 0:01:11.7]} 38. a3 {[%clk 0:00:40.2]} 38... Re7
{[%clk 0:01:04.9]} 39. Kg3 {[%clk 0:00:40.4]} 39... axb4 {[%clk 0:01:00.8]} 40.
axb4 {[%clk 0:00:40.9]} 40... Rce8 {[%clk 0:01:00.8]} 41. Kf4 {[%clk 0:00:41.2]}
41... Ra8 {[%clk 0:00:59.6]} 42. c6 {[%clk 0:00:39.6]} 42... Ra3 {[%clk
0:00:58.6]} 43. Be5 {[%clk 0:00:38.8]} 43... h5 {[%clk 0:00:44.7]} 44. c7 {[%clk
0:00:33.8]} 44... Re8 {[%clk 0:00:42.6]} 45. b5 {[%clk 0:00:33.6]} 45... h4
{[%clk 0:00:38.9]} 46. b6 {[%clk 0:00:30.8]} 46... h3 {[%clk 0:00:32.9]} 47. b7
{[%clk 0:00:20.9]} 47... hxg2 {[%clk 0:00:33.1]} 48. Bxe4 {[%clk 0:00:19.6]}
48... g1=Q {[%clk 0:00:22.7]} 49. Bxf5+ {[%clk 0:00:20.7]} 49... Kh5 {[%clk
0:00:20.3]} 50. c8=Q {[%clk 0:00:18.8]} 50... Rf3+ {[%clk 0:00:21.4]} 51. Ke4
{[%clk 0:00:19.3]} 51... Qb1+ {[%clk 0:00:20.8]} 52. Qc2 {[%clk 0:00:18.8]}
52... Qxb7+ {[%clk 0:00:19]} 53. Kd4 {[%clk 0:00:16.7]} 53... Rd8+ {[%clk
0:00:16]} 54. Kc5 {[%clk 0:00:15.4]} 54... Qa7+ {[%clk 0:00:15.7]} 55. Kc4
{[%clk 0:00:14]} 55... Qf7+ {[%clk 0:00:07.7]} 56. Kc5 {[%clk 0:00:10.5]} 56...
Qxf5 {[%clk 0:00:07.5]} 57. Rh2+ {[%clk 0:00:10.4]} 57... Kg6 {[%clk 0:00:05]}
58. Kc6 {[%clk 0:00:07.7]} 58... Qxc2+ {[%clk 0:00:05.4]} 59. Rxc2 {[%clk
0:00:08.7]} 59... Rf5 {[%clk 0:00:06.8]} 60. Bc7 {[%clk 0:00:08.6]} 60... Rdf8
{[%clk 0:00:07.6]} 61. Bd6 {[%clk 0:00:09.2]} 61... R8f6 {[%clk 0:00:08.1]} 62.
Kd7 {[%clk 0:00:10.7]} 62... Rd5 {[%clk 0:00:08.6]} 63. Ke7 {[%clk 0:00:11.4]}
63... Rdxd6 {[%clk 0:00:09.2]} 64. Rg2 {[%clk 0:00:13.3]} 64... Rde6+ {[%clk
0:00:09.9]} 65. Kd7 {[%clk 0:00:13.7]} 65... Kf5 {[%clk 0:00:11.4]} 0